fUST/lending_fUST_20250218
["ID","MTS","AMOUNT","RATE_DAILY","PERIOD"]
[353461897,1739854240377,-171.2,0.00014602,2]
[353461898,1739854240386,-553.61,0.00014602,2]
[353461899,1739854240397,-3780.04,0.00014624,2]
[353461900,1739854240406,-1256.95,0.00014624,2]
[353461901,1739854240415,-500.0,0.00014624,2]
[353461902,1739854240425,-500.0,0.00014624,2]
[353461903,1739854240434,-1132.79,0.00014625,2]
[353461904,1739854240443,-500.0,0.00014627,2]
[353461905,1739854240452,-500.0,0.00014673,2]
[353461906,1739854240462,-500.0,0.00014706,2]
[353461907,1739854240471,-500.0,0.00014706,2]
[353461908,1739854240480,-301.04357726,0.00014706,2]
[353461909,1739854240489,-1132.79,0.00014707,2]
[353461910,1739854240499,-3780.04,0.00014707,2]
[353461911,1739854240508,-1256.95,0.00014707,2]
[353461912,1739854240517,-500.0,0.00014707,2]
[353461913,1739854240527,-500.0,0.00014707,2]
[353461914,1739854240536,-500.0,0.00014709,2]
[353461915,1739854240545,-536.94142893,0.00014766,2]
[353461916,1739854240555,-3780.04,0.00014789,2]
[353461917,1739854240564,-1256.95,0.00014789,2]
[353461918,1739854240573,-500.0,0.00014789,2]
[353461919,1739854240582,-1132.79,0.0001479,2]
[353461920,1739854240592,-500.0,0.00014791,2]
[353461921,1739854240601,-151.99113801,0.00014853,2]
[353461922,1739854240610,-3780.04,0.00014871,2]
[353461923,1739854240620,-1256.95,0.00014871,2]
[353461924,1739854240629,-500.0,0.00014871,2]
[353461925,1739854240639,-1132.79,0.00014872,2]
[353461926,1739854240650,-500.0,0.00014873,2]
[353461927,1739854240659,-300.0,0.000149,5]
[353461928,1739854240668,-2969.19360576,0.000149,2]
[353461929,1739854240677,-3780.04,0.00014953,2]
[353461930,1739854240687,-1256.95,0.00014953,2]
[353461931,1739854240697,-1132.79,0.00014954,2]
[353461932,1739854240707,-500.0,0.00014955,2]
[353461933,1739854240716,-989.73120192,0.00015025,2]
[353461934,1739854240725,-3780.04,0.00015035,2]
[353461935,1739854240735,-1256.95,0.00015035,2]
[353461936,1739854240744,-1132.79,0.00015036,2]
[353461937,1739854240753,-500.0,0.00015038,2]
[353461938,1739854240763,-270.56457477,0.00015061,2]
[353461939,1739854240772,-500.0,0.00015117,2]
[353461940,1739854240782,-1132.79,0.00015118,2]
[353461941,1739854240791,-3780.04,0.00015118,2]
[353461942,1739854240800,-1256.95,0.00015118,2]
[353461943,1739854240810,-444.68,0.0001512,2]
[353461944,1739854240820,-3780.04,0.000152,2]
[353461945,1739854240829,-1256.95,0.000152,2]
[353461946,1739854240839,-1132.79,0.00015201,2]
[353461947,1739854240848,-182.0,0.00015277,2]
[353461948,1739854240857,-3780.04,0.00015282,2]
[353461949,1739854240866,-1256.95,0.00015282,2]
[353461950,1739854240875,-1132.79,0.00015283,2]
[353461951,1739854240885,-3780.04,0.00015364,2]
[353461952,1739854240894,-1256.95,0.00015364,2]
[353461953,1739854240903,-1132.79,0.00015365,2]
[353461954,1739854240914,-500.0,0.00015386,2]
[353461955,1739854240923,-501.19065359,0.00015387,2]
[353461956,1739854240933,-501.82867103,0.00015387,2]
[353461957,1739854240942,-500.0,0.00015387,2]
[353461958,1739854240951,-500.0,0.00015387,2]
[353461959,1739854240961,-450.29929733,0.00015387,2]
[353461960,1739854240970,-501.41084499,0.00015387,2]
[353461961,1739854240979,-403.74356452,0.00015389,2]
[353461962,1739854240988,-3780.04,0.00015446,2]
[353461963,1739854240998,-1256.95,0.00015446,2]
[353461964,1739854241007,-1132.79,0.00015447,2]
[353461965,1739854241016,-989.73120192,0.00015471,2]
[353461966,1739854241025,-500.0,0.00015481,2]
[353461967,1739854241034,-1132.79,0.00015529,2]
[353461968,1739854241043,-3780.04,0.00015529,2]
[353461969,1739854241053,-1256.95,0.00015529,2]
[353461970,1739854241062,-500.0,0.0001553,2]
[353461971,1739854241072,-500.0,0.00015581,2]
[353461972,1739854241083,-3780.04,0.00015611,2]
[353461973,1739854241092,-1256.95,0.00015611,2]
[353461974,1739854241102,-1132.79,0.00015612,2]
[353461975,1739854241111,-151.99113797,0.00015615,2]
[353461976,1739854241121,-500.0,0.00015681,2]
[353461977,1739854241130,-3780.04,0.00015693,2]
[353461978,1739854241139,-1256.95,0.00015693,2]
[353461979,1739854241149,-1132.79,0.00015694,2]
[353461980,1739854241160,-3780.04,0.00015775,2]
[353461981,1739854241169,-1256.95,0.00015775,2]
[353461982,1739854241179,-575.5,0.00015775,2]
[353461983,1739854241188,-1132.79,0.00015776,2]
[353461984,1739854241198,-500.0,0.00015781,2]
[353461985,1739854241207,-3780.04,0.00015857,2]
[353461986,1739854241216,-1256.95,0.00015857,2]
[353461987,1739854241225,-1132.79,0.00015858,2]
[353461988,1739854241234,-500.0,0.00015881,2]
[353461989,1739854241245,-1132.79,0.0001594,2]
[353461990,1739854241254,-3780.04,0.0001594,2]
[353461991,1739854241263,-1256.95,0.0001594,2]
[353461992,1739854241273,-500.0,0.00015981,2]
[353461993,1739854241282,-989.73120192,0.00016013,2]
[353461994,1739854241291,-3780.20920927,0.00016022,2]
[353461995,1739854241300,-1257.01,0.00016022,2]
[353461996,1739854241310,-1132.84624491,0.00016023,2]
[353461997,1739854241319,-500.0,0.00016081,2]
[353461998,1739854241409,-150.0,0.00016099,2]
[353461999,1739854241419,-538.0,0.00016099,2]
[353462000,1739854241429,-1971.0,0.00016099,2]
[353462001,1739854241438,-2293.0,0.00016099,2]
[353462002,1739854241447,-396.0,0.00016099,2]
[353462003,1739854241457,-639.25,0.00016164,2]
[353462004,1739854241466,-500.0,0.00016181,2]
[353462005,1739854241476,-500.0,0.00016281,2]
[353462006,1739854241485,-151.99113797,0.00016377,2]
[353462007,1739854241494,-914.6,0.00016381,2]
[353462008,1739854241504,-1000.0,0.00016851,30]
[353462009,1739854241513,-1000.0,0.00016851,30]
[353462010,1739854241522,-1000.0,0.00016851,30]
[353462011,1739854241531,-1000.0,0.00016851,30]
[353462012,1739854241541,-1000.0,0.00016851,30]
[353462013,1739854241550,-1187.81649,0.00016851,30]
[353462014,1739854241559,-151.99113797,0.00017138,2]
[353462015,1739854241569,-400.0,0.00017332,2]
[353462016,1739854241578,-639.25,0.00017534,4]
[353462017,1739854241587,-366.7689426,0.00017639,2]
[353462018,1739854241597,-7917.84961536,0.00017869,2]
[353462019,1739854241607,-236936.88658894,0.00017879,5]
[353462020,1739854241616,-136724.7322521,0.00017879,15]
[353462021,1739854241626,-3000.0,0.000179,2]
[353462022,1739854241635,-171.65,0.000179,31]
[353462023,1739854241645,-171.65,0.000179,31]
[353462024,1739854241655,-171.65,0.000179,31]
[353462025,1739854241665,-171.65,0.000179,31]
[353462026,1739854241674,-171.65,0.000179,31]
[353462027,1739854241684,-159.93229297,0.000179,2]
[353462028,1739854241693,-159.93229297,0.000179,2]
[353462029,1739854241702,-159.93229297,0.000179,2]
[353462030,1739854241712,-159.93229297,0.000179,2]
[353462031,1739854241721,-159.93229297,0.000179,2]
[353462032,1739854241730,-159.93229297,0.000179,2]
[353462033,1739854241739,-159.93229297,0.000179,2]
[353462034,1739854241749,-159.93,0.000179,2]
[353462035,1739854241759,-157.12646327,0.000179,2]
[353462036,1739854241768,-157.12646327,0.000179,2]
[353462037,1739854241778,-157.12646327,0.000179,2]
[353462038,1739854241787,-157.12646327,0.000179,2]
[353462039,1739854241796,-157.12646327,0.000179,2]
[353462040,1739854241806,-157.12646327,0.000179,2]
[353462041,1739854241815,-157.12646327,0.000179,2]
[353462042,1739854241824,-157.12646327,0.000179,2]
[353462043,1739854241833,-157.12646327,0.000179,2]
[353462044,1739854241843,-157.12646327,0.000179,2]
[353462045,1739854241852,-157.12646327,0.000179,2]
[353462046,1739854241861,-157.12646327,0.000179,2]
[353462047,1739854241870,-157.12646327,0.000179,2]
[353462048,1739854241880,-157.12646327,0.000179,2]
[353462049,1739854241889,-157.12646327,0.000179,2]
[353462050,1739854241900,-157.12646327,0.000179,2]
[353462051,1739854241909,-157.12646327,0.000179,2]
[353462052,1739854241918,-157.12646327,0.000179,2]
[353462053,1739854241927,-157.12,0.000179,2]
[353462054,1739854241936,-7150.72474491,0.000179,2]
[353462055,1739854241945,-151.99113797,0.000179,2]
[353462056,1739854241955,-160.0,0.000179,5]
[353462057,1739854241964,-502.59108977,0.00017973,2]
[353462058,1739854241973,-989.73120192,0.0001799,2]
[353462059,1739854241983,-4948.6560096,0.0001799,2]
[353462060,1739854241992,-152.3254028,0.00017998,2]
[353462061,1739854242002,-50685.19767218,0.00018,5]
[353462062,1739854242011,-1582733.78621736,0.00018,15]
[353462063,1739854242020,-196699.47171784,0.00018,15]
[353462064,1739854242030,-285384.42487364,0.00018,15]
[353462065,1739854242039,-260372.16156001,0.00018,15]
[353462066,1739854242048,-10891.96597895,0.00018,15]
[353462067,1739854242201,-900.0,0.00014438,2]
[353462068,1739854242210,-1223.32200579,0.00018,5]
[353462069,1739854242221,-757.90476864,0.00018,5]
[353462070,1739854242231,-684.48492881,0.00018,15]
[353462079,1739854242927,-721.29925042,0.00015808,2]
[353462080,1739854242984,-178.70074958,0.00015808,2]
[353462081,1739854242993,-562.62567283,0.00017178,2]
[353462107,1739854258147,500.0,0.00013698,2]
[353462108,1739854262492,500.0,0.00013698,2]
[353462109,1739854270574,500.0,0.00013698,2]
[353462110,1739854276200,500.0,0.00013698,2]
[353462111,1739854276450,415.47,0.0001378,2]
[353462112,1739854279779,426.91035674,0.00013698,2]
[353462113,1739854282207,500.0,0.00013698,2]
[353462114,1739854282252,500.0,0.00013698,2]
[353462115,1739854285361,500.0,0.00013698,2]
[353462116,1739854286721,1230.07,0.00013698,2]
[353462117,1739854286974,1230.07,0.0001378,2]
[353462118,1739854287225,1230.07,0.00013863,2]
[353462119,1739854290450,500.0,0.00013698,2]
[353462120,1739854295513,212.16315615,0.00013698,2]
[353462121,1739854295984,500.0,0.00013698,2]
[353462122,1739854299912,500.0,0.00013698,2]
[353462123,1739854300162,328.59979022,0.0001378,2]
[353462124,1739854303448,500.0,0.00013698,2]
[353462125,1739854303477,631.54,0.00013698,2]
[353462126,1739854303675,500.0,0.0001378,2]
[353462127,1739854303922,585.02,0.00013863,2]
[353462128,1739854308822,500.0,0.00013698,2]
[353462129,1739854309091,500.0,0.0001378,2]
[353462130,1739854309347,553.12,0.00013863,2]
[353462131,1739854309749,500.0,0.00013698,2]
[353462132,1739854310015,515.03,0.0001378,2]
[353462133,1739854311982,500.0,0.00013698,2]
[353462134,1739854313611,500.0,0.00013698,2]
[353462135,1739854315376,500.0,0.00013698,2]
[353462136,1739854315574,568.06,0.00013698,2]
[353462137,1739854315619,364.88,0.0001378,2]
[353462138,1739854316877,500.0,0.00013698,2]
[353462139,1739854318099,500.0,0.00013698,2]
[353462140,1739854318380,500.0,0.0001378,2]
[353462141,1739854318645,500.0,0.00013863,2]
[353462142,1739854319649,500.0,0.00013698,2]
[353462143,1739854320933,500.0,0.00013698,2]
[353462144,1739854323097,500.0,0.00013698,2]
[353462145,1739854323370,281.83,0.0001378,2]
[353462146,1739854325380,503.8999423,0.00013698,2]
[353462147,1739854327050,500.0,0.00013698,2]
[353462148,1739854327306,500.0,0.00013779,2]
[353462149,1739854327889,500.0,0.00013698,2]
[353462150,1739854331070,500.0,0.00013698,2]
[353462151,1739854331324,500.0,0.0001378,2]
[353462152,1739854331598,516.27,0.00013863,2]
[353462153,1739854333790,500.0,0.00013698,2]
[353462154,1739854334058,336.17,0.0001378,2]
[353462155,1739854336508,500.0,0.00013698,2]
[353462156,1739854336807,500.0,0.0001378,2]
[353462157,1739854337085,252.06,0.00013863,2]
[353462158,1739854339031,605.19,0.00013698,2]
[353462159,1739854339564,500.0,0.00013698,2]
[353462160,1739854340907,500.0,0.00013698,2]
[353462161,1739855159138,-400.0,0.00010685,2]
[353462162,1739855159164,-161.88374919,0.0001251,2]
[353462163,1739855159191,-161.88374919,0.00012636,2]
[353462164,1739855159218,-42.98818619,0.00012764,2]
[353462165,1739855234121,-670.38069531,0.00012637,2]
[353462166,1739855241129,-318.85005136,0.00012637,2]
[353462167,1739855244133,-198.47227596,0.00012637,2]
[353462168,1739855244156,-300.0,0.00012764,2]
[353462169,1739855244179,-1800.40008748,0.00012765,2]
[353462170,1739855249080,-1083.40360025,0.00012765,2]
[353462171,1739855253101,-4555.79229994,0.00012765,2]
[353462173,1739855372131,-7788.01470183,0.00012765,2]
[353462174,1739855372154,-1000.0,0.00013068,2]
[353462175,1739855372177,-257.0,0.00013586,2]
[353462176,1739855372198,-797.83329152,0.00013587,4]
[353462177,1739855372220,-310.79731588,0.00013587,4]
[353462178,1739855372243,-500.0,0.00013697,2]
[353462179,1739855372265,-500.0,0.00013697,2]
[353462180,1739855372287,-649.03474957,0.00013697,2]
[353462181,1739855372309,-500.0,0.00013698,2]
[353462182,1739855372332,-500.0,0.00013698,2]
[353462183,1739855372354,-232.55291529,0.00013698,2]
[353462184,1739855372377,-500.0,0.00013698,2]
[353462185,1739855372399,-627.76034019,0.00013698,2]
[353462186,1739855372421,-500.0,0.00013698,2]
[353462187,1739855372448,-500.0,0.00013698,2]
[353462188,1739855372471,-500.0,0.00013698,2]
[353462189,1739855372592,-500.0,0.00013698,2]
[353462190,1739855372615,-501.10396152,0.00013698,2]
[353462191,1739855372636,-559.89197759,0.00013698,2]
[353462192,1739855372657,-500.0,0.00013698,2]
[353462193,1739855372678,-500.85741301,0.00013698,2]
[353462194,1739855372699,-500.0,0.00013698,2]
[353462195,1739855372720,-501.2909219,0.00013698,2]
[353462196,1739855372744,-500.0,0.00013698,2]
[353462197,1739855372765,-425.90599518,0.00013698,2]
[353462198,1739855372786,-336.60850617,0.00013698,2]
[353462199,1739855372807,-500.0,0.00013698,2]
[353462200,1739855372829,-500.0,0.00013698,2]
[353462201,1739855372851,-500.0,0.00013698,2]
[353462202,1739855372873,-500.0,0.00013698,2]
[353462203,1739855372894,-500.0,0.00013698,2]
[353462204,1739855372915,-500.0,0.00013698,2]
[353462205,1739855372937,-501.1936085,0.00013698,2]
[353462206,1739855372958,-500.0,0.00013698,2]
[353462207,1739855372979,-500.0,0.00013698,2]
[353462208,1739855373000,-500.0,0.00013698,2]
[353462209,1739855373021,-500.0,0.00013698,2]
[353462210,1739855373043,-500.0,0.00013698,2]
[353462211,1739855373066,-500.0,0.00013698,2]
[353462212,1739855373087,-500.0,0.00013698,2]
[353462213,1739855373109,-500.0,0.00013698,2]
[353462214,1739855373132,-500.0,0.00013698,2]
[353462215,1739855373155,-500.0,0.00013698,2]
[353462216,1739855373177,-500.0,0.00013698,2]
[353462217,1739855373199,-525.60969558,0.00013698,2]
[353462218,1739855373219,-500.0,0.00013698,2]
[353462219,1739855373240,-500.0,0.00013698,2]
[353462220,1739855373262,-521.32307024,0.00013698,2]
[353462221,1739855373284,-500.0,0.00013698,2]
[353462222,1739855373308,-500.0,0.00013698,2]
[353462223,1739855373331,-500.91124956,0.00013698,2]
[353462224,1739855373353,-500.0,0.00013698,2]
[353462225,1739855373377,-500.0,0.00013698,2]
[353462226,1739855373399,-500.0,0.00013698,2]
[353462227,1739855373421,-500.0,0.00013698,2]
[353462228,1739855373450,-500.0,0.00013698,2]
[353462229,1739855373472,-500.0,0.00013698,2]
[353462230,1739855373495,-500.0,0.00013698,2]
[353462231,1739855373520,-510.80053049,0.00013698,2]
[353462232,1739855373542,-500.0,0.00013698,2]
[353462233,1739855373564,-500.0,0.00013698,2]
[353462234,1739855373587,-287.79071924,0.00013698,2]
[353462235,1739855373611,-500.0,0.00013698,2]
[353462236,1739855373633,-500.0,0.00013698,2]
[353462237,1739855373656,-500.0,0.00013698,2]
[353462238,1739855373678,-500.0,0.00013698,2]
[353462239,1739855373700,-501.2469383,0.00013698,2]
[353462240,1739855373721,-500.0,0.00013698,2]
[353462241,1739855373744,-500.0,0.00013698,2]
[353462242,1739855373767,-500.0,0.00013698,2]
[353462243,1739855373788,-500.0,0.00013698,2]
[353462244,1739855373810,-500.0,0.00013698,2]
[353462245,1739855373831,-555.95,0.00013698,2]
[353462246,1739855373853,-502.15825496,0.00013698,2]
[353462247,1739855373877,-611.26640793,0.00013698,2]
[353462248,1739855373899,-500.0,0.00013698,2]
[353462249,1739855373921,-500.0,0.00013698,2]
[353462250,1739855373944,-299.50147806,0.00013698,2]
[353462251,1739855373967,-500.0,0.00013698,2]
[353462252,1739855373990,-500.0,0.00013698,2]
[353462253,1739855374014,-500.0,0.00013698,2]
[353462254,1739855374036,-500.0,0.00013698,2]
[353462255,1739855374058,-500.0,0.00013698,2]
[353462256,1739855374080,-504.02800978,0.00013698,2]
[353462257,1739855374102,-500.0,0.00013698,2]
[353462258,1739855374125,-521.50597506,0.00013698,2]
[353462259,1739855374148,-500.0,0.00013698,2]
[353462260,1739855374170,-502.04666387,0.00013698,2]
[353462261,1739855374193,-502.65481894,0.00013698,2]
[353462262,1739855374217,-500.0,0.00013698,2]
[353462263,1739855374238,-502.7774383,0.00013698,2]
[353462264,1739855374261,-500.0,0.00013698,2]
[353462265,1739855374283,-500.0,0.00013698,2]
[353462266,1739855374307,-340.33881491,0.00013698,2]
[353462267,1739855374330,-500.0,0.00013698,2]
[353462268,1739855374351,-500.0,0.00013698,2]
[353462269,1739855374373,-504.09242746,0.00013698,2]
[353462270,1739855374395,-501.12523339,0.00013698,2]
[353462271,1739855374416,-500.0,0.00013698,2]
[353462272,1739855374442,-500.0,0.00013698,2]
[353462273,1739855374463,-500.0,0.00013698,2]
[353462274,1739855374487,-500.0,0.00013698,2]
[353462275,1739855374509,-500.0,0.00013698,2]
[353462276,1739855374530,-500.0,0.00013698,2]
[353462277,1739855374552,-500.0,0.00013698,2]
[353462278,1739855374573,-500.0,0.00013698,2]
[353462279,1739855374594,-500.0,0.00013698,2]
[353462280,1739855374616,-500.0,0.00013698,2]
[353462281,1739855374637,-500.0,0.00013698,2]
[353462282,1739855374659,-500.0,0.00013698,2]
[353462283,1739855374680,-500.0,0.00013698,2]
[353462284,1739855374701,-500.0,0.00013698,2]
[353462285,1739855374723,-500.0,0.00013698,2]
[353462286,1739855374745,-500.0,0.00013698,2]
[353462287,1739855374768,-500.0,0.00013698,2]
[353462288,1739855374789,-500.0,0.00013698,2]
[353462289,1739855374811,-500.0,0.00013698,2]
[353462290,1739855374833,-333.41409456,0.00013698,2]
[353462291,1739855374854,-500.0,0.00013698,2]
[353462292,1739855374877,-500.0,0.00013698,2]
[353462293,1739855374900,-500.0,0.00013698,2]
[353462294,1739855374921,-500.0,0.00013698,2]
[353462295,1739855374944,-500.93631628,0.00013698,2]
[353462296,1739855374966,-500.70638964,0.00013698,2]
[353462297,1739855374989,-500.0,0.00013698,2]
[353462298,1739855375011,-500.0,0.00013698,2]
[353462299,1739855375033,-500.0,0.00013698,2]
[353462300,1739855375055,-500.0,0.00013698,2]
[353462301,1739855375076,-504.73967674,0.00013698,2]
[353462302,1739855375099,-500.0,0.00013698,2]
[353462303,1739855375120,-500.0,0.00013698,2]
[353462304,1739855375142,-500.0,0.00013698,2]
[353462305,1739855375164,-500.0,0.00013698,2]
[353462306,1739855375303,-422.94000722,0.00013698,2]
[353462307,1739855375327,-500.0,0.00013698,2]
[353462308,1739855375350,-500.0,0.00013698,2]
[353462309,1739855375373,-500.0,0.00013698,2]
[353462310,1739855375396,-500.0,0.00013698,2]
[353462311,1739855375419,-500.0,0.00013698,2]
[353462312,1739855375446,-500.0,0.00013698,2]
[353462313,1739855375467,-501.00128565,0.00013698,2]
[353462314,1739855375492,-500.0,0.00013698,2]
[353462315,1739855375516,-500.0,0.00013698,2]
[353462316,1739855375537,-500.0,0.00013698,2]
[353462317,1739855375560,-667.67,0.00013698,2]
[353462318,1739855375581,-500.0,0.00013698,2]
[353462319,1739855375602,-500.0,0.00013698,2]
[353462320,1739855375624,-500.0,0.00013698,2]
[353462321,1739855375647,-500.0,0.00013698,2]
[353462322,1739855375668,-500.0,0.00013698,2]
[353462323,1739855375689,-500.0,0.00013698,2]
[353462324,1739855375711,-502.85590933,0.00013698,2]
[353462325,1739855375733,-500.0,0.00013698,2]
[353462326,1739855375755,-500.0,0.00013698,2]
[353462327,1739855375776,-500.0,0.00013698,2]
[353462328,1739855375798,-500.0,0.00013698,2]
[353462329,1739855375819,-500.0,0.00013698,2]
[353462330,1739855375840,-521.25936493,0.00013698,2]
[353462331,1739855375861,-502.06694443,0.00013698,2]
[353462332,1739855375884,-500.0,0.00013698,2]
[353462333,1739855375907,-500.0,0.00013698,2]
[353462334,1739855375930,-500.0,0.00013698,2]
[353462335,1739855375955,-500.0,0.00013698,2]
[353462336,1739855375976,-500.0,0.00013698,2]
[353462337,1739855375998,-500.0,0.00013698,2]
[353462338,1739855376019,-500.0,0.00013698,2]
[353462339,1739855376042,-500.0,0.00013698,2]
[353462340,1739855376064,-500.0,0.00013698,2]
[353462341,1739855376086,-500.0,0.00013698,2]
[353462342,1739855376109,-500.0,0.00013698,2]
[353462343,1739855376131,-500.0,0.00013698,2]
[353462344,1739855376152,-502.9159376,0.00013698,2]
[353462345,1739855376174,-500.0,0.00013698,2]
[353462346,1739855376196,-533.6,0.00013698,2]
[353462347,1739855376219,-500.0,0.00013698,2]
[353462348,1739855376241,-5000.0,0.00013698,2]
[353462349,1739855376263,-648.21681595,0.00013698,2]
[353462350,1739855376285,-500.0,0.00013698,2]
[353462351,1739855376307,-500.0,0.00013698,2]
[353462352,1739855376329,-197.53074717,0.00013698,2]
[353462353,1739855376350,-500.0,0.00013698,2]
[353462354,1739855376371,-500.0,0.00013698,2]
[353462355,1739855376391,-500.0,0.00013698,2]
[353462356,1739855376412,-500.0,0.00013698,2]
[353462357,1739855376436,-500.0,0.00013698,2]
[353462358,1739855376458,-5161.178,0.00013698,2]
[353462359,1739855376483,-500.0,0.00013698,2]
[353462360,1739855376505,-500.0,0.00013698,2]
[353462361,1739855376527,-500.0,0.00013698,2]
[353462362,1739855376549,-500.0,0.00013698,2]
[353462363,1739855376571,-500.0,0.00013698,2]
[353462364,1739855376591,-358.43228529,0.00013698,2]
[353462365,1739855376612,-500.0,0.00013698,2]
[353462366,1739855376634,-500.0,0.00013698,2]
[353462367,1739855376656,-500.0,0.00013698,2]
[353462368,1739855376678,-500.0,0.00013698,2]
[353462369,1739855376700,-232.35849359,0.00013698,2]
[353462370,1739855376721,-500.0,0.00013698,2]
[353462371,1739855376743,-500.0,0.00013698,2]
[353462372,1739855376766,-500.0,0.00013698,2]
[353462373,1739855376788,-504.56195438,0.00013698,2]
[353462374,1739855376810,-500.0,0.00013698,2]
[353462375,1739855376831,-500.0,0.00013698,2]
[353462376,1739855376853,-501.35578035,0.00013698,2]
[353462377,1739855376875,-500.0,0.00013698,2]
[353462378,1739855376896,-500.0,0.00013698,2]
[353462379,1739855376918,-500.0,0.00013698,2]
[353462380,1739855376941,-500.0,0.00013698,2]
[353462381,1739855376962,-500.0,0.00013698,2]
[353462382,1739855376984,-500.0,0.00013698,2]
[353462383,1739855377005,-482.39405405,0.00013698,2]
[353462384,1739855377029,-500.0,0.00013698,2]
[353462385,1739855377049,-501.5694079,0.00013698,2]
[353462386,1739855377070,-500.0,0.00013698,2]
[353462387,1739855377094,-500.0,0.00013698,2]
[353462388,1739855377118,-500.0,0.00013698,2]
[353462389,1739855377140,-500.0,0.00013698,2]
[353462390,1739855377163,-500.0,0.00013698,2]
[353462391,1739855377187,-685.19,0.00013698,2]
[353462392,1739855377208,-500.0,0.00013698,2]
[353462393,1739855377230,-500.0,0.00013698,2]
[353462394,1739855377251,-500.0,0.00013698,2]
[353462395,1739855377273,-500.0,0.00013698,2]
[353462396,1739855377296,-486.24,0.00013698,2]
[353462397,1739855377322,-543.4338179,0.00013698,2]
[353462398,1739855377345,-500.0,0.00013698,2]
[353462399,1739855377370,-500.0,0.00013698,2]
[353462400,1739855377393,-500.0,0.00013698,2]
[353462401,1739855377415,-1271.99,0.00013698,2]
[353462402,1739855377443,-500.0,0.00013698,2]
[353462403,1739855377465,-510.45855181,0.00013698,2]
[353462404,1739855377494,-500.0,0.00013698,2]
[353462405,1739855377520,-601.65,0.00013698,2]
[353462406,1739855377543,-500.0,0.00013698,2]
[353462407,1739855377565,-500.0,0.00013698,2]
[353462408,1739855377587,-500.0,0.00013698,2]
[353462409,1739855377611,-500.0,0.00013698,2]
[353462410,1739855377634,-500.0,0.00013698,2]
[353462411,1739855377657,-500.0,0.00013698,2]
[353462412,1739855377679,-500.0,0.00013698,2]
[353462413,1739855377701,-500.0,0.00013698,2]
[353462414,1739855377723,-500.0,0.00013698,2]
[353462415,1739855377746,-434.73562807,0.00013698,2]
[353462416,1739855377768,-500.0,0.00013698,2]
[353462417,1739855377791,-500.0,0.00013698,2]
[353462418,1739855377814,-500.0,0.00013698,2]
[353462419,1739855377923,-502.6808592,0.00013698,2]
[353462420,1739855377946,-500.0,0.00013698,2]
[353462421,1739855377970,-500.0,0.00013698,2]
[353462422,1739855377995,-500.0,0.00013698,2]
[353462423,1739855378017,-500.0,0.00013698,2]
[353462424,1739855378040,-500.0,0.00013698,2]
[353462425,1739855378062,-500.0,0.00013698,2]
[353462426,1739855378083,-493.57,0.00013698,2]
[353462427,1739855378106,-505.06840567,0.00013698,2]
[353462428,1739855378129,-500.0,0.00013698,2]
[353462429,1739855378154,-500.0,0.00013698,2]
[353462430,1739855378176,-500.0,0.00013698,2]